Cogmind - Beta 13 @@@ ROGUE MODE // 2024.04.29 @ 10:03:29 Player: Retknock Result: Destroyed by G-34 Mercenary with Small Laser Performance ------------- Evolutions (1) 500 Regions Visited (2) 400 Robots Destroyed (36) 180 Value Destroyed (947) 947 Prototype IDs (0) 0 Alien Tech Used (0) 0 Bonus (0) 0 TOTAL SCORE: 2027 Bonus ------- None Cogmind --------- Core Integrity 0/400 Matter 300/300 Energy 99/100 System Corruption 0% Temperature Cool (6) Movement Core (100) Ox1 Location -9/Materials Parts ------- > --- POWER (1) -------- (None) > --- PROPULSION (3) --- (None) > --- UTILITY (3) ------ Small Storage Unit > --- WEAPON (2) ------- (None) > --- INVENTORY (8) ---- Ion Engine Light Ion Engine Peak State ------------ > --- POWER ------------ Ion Engine > --- PROPULSION ------- Aluminum Leg Aluminum Leg > --- UTILITY ---------- Heat Sink Small Storage Unit High-capacity Matter Pod > --- WEAPON ----------- Shotgun Light Cannon > --- INVENTORY -------- Ion Engine EM Pulse Gun Small Laser Shotgun Shotgun Shotgun Shotgun [Rating: 10] Favorites ----------- Power Light Ion Engine Engine Light Ion Engine Propulsion Aluminum Leg Leg Aluminum Leg Hover Unit Hover Unit Utility High-capacity Matter Pod Device Heat Sink Storage High-capacity Matter Pod Processor Terrain Scan Processor Protection Light Armor Plating Weapon EM Pulse Gun Energy Gun EM Pulse Gun Ballistic Gun Shotgun Ballistic Cannon Light Cannon Launcher Grenade Launcher Build | -11 -10 -9 ------- Run | Yrd Mat Mat Slots Evolved 2 | . . 2 Power . | . . . Propulsion 1 | . . 1 Utility 1 | . . 1 Weapon . | . . . Parts Attached 37 | 5 21 11 Power 4 | 1 1 2 Engine 4 | 1 1 2 Core . | . . . Reactor . | . . . Propulsion 6 | 2 3 1 Treads . | . . . Leg 5 | 2 3 . Wheel . | . . . Hover 1 | . . 1 Flight . | . . . Utility 12 | . 10 2 Device 2 | . 1 1 Storage 6 | . 6 . Processor 1 | . . 1 Hackware . | . . . Protection 3 | . 3 . Artifact . | . . . Weapon 15 | 2 7 6 Energy Gun 7 | 1 5 1 Energy Cannon . | . . . Ballistic Gun 6 | 1 . 5 Ballistic Cannon 1 | . 1 . Launcher 1 | . 1 . Special Weapon . | . . . Impact Weapon . | . . . Slashing Weapon . | . . . Piercing Weapon . | . . . Special Melee Weapon . | . . . Unidentified Prototypes . | . . . Parts Lost 16 | . 6 10 Power 3 | . 1 2 Propulsion 4 | . 1 3 Utility 3 | . 1 2 Weapon 6 | . 3 3 Highest Loss Streak 5 | . 4 5 To Critical Strikes . | . . . Average Slot Usage (%) 84 | . 93 71 Engine 11 | . 13 9 Leg 20 | . 27 11 Device 4 | . 4 5 Storage 18 | . 15 21 Protection 3 | . 5 . Energy Gun 10 | . 14 4 Ballistic Gun 4 | . . 9 Ballistic Cannon 3 | . 1 6 Launcher 5 | . 9 . Naked Turns . | . . . Heaviest Build 21 | 6 19 21 Greatest Support 20 | 20 20 20 Greatest Overweight (x) 5 | . . 5 Average Overweight (x) . | . . . Largest Inventory Capacity 25 | 5 25 8 Average Capacity 6 | 5 5 8 Most Carried 8 | 5 5 8 Average Carried 5 | 2 4 6 Final Capacity 8 | 5 8 8 Final Carried 4 | 4 4 2 Class Distribution -------------------- 93% | Mutant 6% | Scavenger-Mutant Dominant Class ---------------- Mutant | -10/Materials Mutant | -9/Materials Resources | -11 -10 -9 ----------- Run | Yrd Mat Mat Matter Collected 1040 | 257 406 377 Remotely . | . . . Salvage Created 926 | 31 519 376 Parts 74 | 3 31 40 Haulers Intercepted 1 | . 1 . Recyclers Shooed 3 | . 1 2 Parts Field Recycled . | . . . Retrieved Matter . | . . . Parts Self-Destructed . | . . . Prevented . | . . . Kills | -11 -10 -9 ------- Run | Yrd Mat Mat Combat Hostiles Destroyed 28 | 1 14 13 Guns 13 | 1 1 11 Cannons 2 | . . 2 AOE 13 | . 13 . Classes Destroyed 7 | 1 5 1 Worker 1 | . 1 . Hauler 1 | . 1 . Recycler 1 | . 1 . Watcher 5 | . 2 3 Swarmer 9 | . 3 6 Grunt 16 | 1 11 4 Sentry 3 | . . 3 Best Kill Streak 5 | 1 3 5 Combat Bots Only 4 | 1 3 4 Max Kills in Single Turn 3 | 1 3 1 Gunslinging . | . . . Exploded 3 | . 3 . Melee . | . . . Uniques/NPCs Destroyed . | . . . Combat | -11 -10 -9 -------- Run | Yrd Mat Mat Hostile Shots Fired 185 | 9 48 128 Missed 48 | 3 15 30 Damage Taken 1906 | 67 597 1242 Core 459 | . 57 402 Absorbed by Shields . | . . . Core Remaining (%) 88 | 100 77 . Volleys Fired 97 | 7 34 56 Largest 2 | 2 2 2 Hottest 80 | 70 80 75 Shots Fired 164 | 14 54 96 Gun 116 | 14 37 65 Cannon 32 | . 1 31 Launcher 16 | . 16 . Special . | . . . Kinetic 92 | 7 1 84 Thermal 25 | 7 15 3 Explosive 16 | . 16 . Electromagnetic 31 | . 22 9 Robot Hit Streak 10 | 2 5 10 Robot Miss Streak 6 | 3 3 6 Penetration Max . | . . . Secondary Targets 2 | . 1 1 Max Gunslinging Chain 1 | . 1 1 Shots Hit Robots 94 | 7 27 60 Core Hits 61 | 3 29 29 Critical Kills . | . . . Critical Parts Destroyed . | . . . Critical Strikes 2 | 1 1 . Burn 1 | 1 . . Blast 1 | . 1 . Melee Attacks . | . . . Impact . | . . . Slashing . | . . . Piercing . | . . . Sneak Attacks . | . . . Combat Hostiles . | . . . Follow-up Attacks . | . . . Damage Inflicted 2405 | 74 1344 987 Guns 1086 | 74 243 769 Cannons 236 | . 19 217 Explosions 1082 | . 1082 . Melee . | . . . Ramming 1 | . . 1 Kinetic 942 | 38 19 885 Thermal 205 | 36 147 22 Explosive 1004 | . 1004 . Electromagnetic 253 | . 174 79 Impact . | . . . Slashing . | . . . Piercing . | . . . Highest Corruption . | . . . Average Corruption . | . . . Corruption Purged . | . . . Corruption Blocked . | . . . Overload Shots . | . . . Overflow Damage 23 | . 23 . Projectiles . | . . . Explosions 23 | . 23 . Melee . | . . . Knockbacks 2 | . . 2 Impact . | . . . Kinetic 2 | . . 2 Secondary . | . . . Self-Inflicted Damage 217 | . 217 . Shots 7 | . 7 . Rammed 2 | . . 2 Targets Rammed 2 | . . 2 Kicked . | . . . Crushed . | . . . Highest Temperature 146 | 146 72 57 Average Temperature 35 | 69 26 20 Received Heat Transfer 723 | 36 213 474 Siege Activations . | . . . Robots Corrupted . | . . . Combat Hostiles . | . . . Parts Fried 1 | . 1 . Impact Corruptions . | . . . Robots Melted . | . . . Combat Hostiles . | . . . Parts Melted 1 | . 1 . Heat Transferred 447 | 185 212 50 Parts Sabotaged . | . . . Parts Stolen . | . . . Parts Stripped . | . . . Power Chain Reactions 1 | . 1 . Alert | -11 -10 -9 ------- Run | Yrd Mat Mat Peak Influence 272 | 20 272 210 Initial 33 | . 13 33 Average 106 | 3 128 89 Maximum Alert Level 1 | . 1 1 Low Security (%) 92 | 100 86 99 Level 1 7 | . 13 . Level 2 . | . . . Level 3 . | . . . Level 4 . | . . . Level 5 . | . . . High Security . | . . . Max Security . | . . . Squads Dispatched 3 | . 2 1 Investigation 2 | . 2 . Extermination . | . . . Reinforcement 1 | . . 1 Assault . | . . . Garrison . | . . . Intercept . | . . . Searches Triggered . | . . . Construction Impeded . | . . . Haulers Reinforced . | . . . Active Scanning Responses . | . . . Cargo Convoy Interrupts . | . . . Stealth | -11 -10 -9 --------- Run | Yrd Mat Mat Distress Signals 2 | . . 2 Communications Jammed . | . . . Distress Signals . | . . . Times Spotted 43 | 1 19 23 Peak Tracking Total 5 | 1 4 5 Tactical Retreats 1 | . . 1 Traps | -11 -10 -9 ------- Run | Yrd Mat Mat Traps Triggered 2 | . 2 . Indirectly . | . . . Trap Hack Attempts . | . . . Triggered . | . . . Disarmed . | . . . Reprogrammed . | . . . Reused . | . . . Traps Extracted . | . . . Installed . | . . . Triggered . | . . . Machines | -11 -10 -9 ---------- Run | Yrd Mat Mat Machines Disabled 5 | . 5 . Max in Single Turn 2 | . 2 . Machines Repaired . | . . . Machines Dismantled . | . . . Machines Sabotaged . | . . . Overloaded Fab Kills . | . . . Hacking | -11 -10 -9 --------- Run | Yrd Mat Mat Machines Accessed 7 | . 6 1 Terminals 6 | . 5 1 Fabricators . | . . . Repair Stations 1 | . 1 . Recycling Units . | . . . Scanalyzers . | . . . Garrison Access . | . . . Total Hacks 17 | . 15 2 Successful 12 | . 10 2 Failed 5 | . 5 . Catastrophic . | . . . Database Lockouts . | . . . Manual . | . . . Terminals 15 | . 13 2 Fabricators . | . . . Repair Stations 2 | . 2 . Recycling Units . | . . . Scanalyzers . | . . . Garrison Access . | . . . Terminal Hacks 11 | . 9 2 Record 10 | . 8 2 Alert Level 1 | . 1 . Fabricator Hacks . | . . . Repair Station Hacks 1 | . 1 . Scan Component 1 | . 1 . Recycling Unit Hacks . | . . . Scanalyzer . | . . . Garrison Access Hacks . | . . . Unauthorized Hacks . | . . . Terminals . | . . . Fabricators . | . . . Repair Stations . | . . . Recycling Units . | . . . Scanalyzers . | . . . Garrison Access . | . . . Data Cores Recovered . | . . . Used . | . . . Hacking Detections 5 | . 4 1 Full Trace Events . | . . . Feedback Events . | . . . Feedback Blocked . | . . . Robot Schematics Acquired . | . . . Robots Built . | . . . Authchips . | . . . Time . | . . . Total Robot Build Rating . | . . . Part Schematics Acquired . | . . . Parts Built . | . . . Authchips . | . . . Time . | . . . Total Part Build Rating . | . . . Parts Repaired . | . . . Time . | . . . Parts Recycled . | . . . Recycled Matter . | . . . Retrieved Matter . | . . . Retrieved Components . | . . . Parts Scanalyzed . | . . . Part Schematics Acquired . | . . . Parts Damaged . | . . . Bothacking | -11 -10 -9 ------------ Run | Yrd Mat Mat Used RIF Installer . | . . . Robots Hacked . | . . . Non-combat . | . . . Combat . | . . . Robot Hacks Applied . | . . . Relay Couplers Released . | . . . Fabnet Peak Effective % . | . . . Robots Rewired . | . . . Allies Hacked . | . . . Hacks Repelled . | . . . Allies | -11 -10 -9 -------- Run | Yrd Mat Mat Total Allies . | . . . Largest Group . | . . . Highest-Rated Group . | . . . Highest-Rated Ally . | . . . Total Orders . | . . . Ally Attacks . | . . . Total Damage . | . . . Kills . | . . . Allies Corrupted . | . . . Allies Melted . | . . . Intel | -11 -10 -9 ------- Run | Yrd Mat Mat Robot Analysis Total . | . . . Derelict Logs Recovered . | . . . Drone Launches . | . . . Drone Recoveries . | . . . Exploration | -11 -10 -9 ------------- Run | Yrd Mat Mat Turns Passed 2339 | 128 1284 927 Spaces Moved 1463 | 88 903 472 Core 98 | 28 . 70 Treads . | . . . Legs 1310 | 60 903 347 Wheels . | . . . Hover 55 | . . 55 Flight . | . . . Fastest Speed 50 | 50 120 100 Average Speed 126 | 97 120 144 Slowest Speed 300 | 120 120 300 Overloaded Moves . | . . . Propulsion Burnouts . | . . . Robots Hopped . | . . . Cave-ins Triggered . | . . . Exploration Rate (%) 40 | 9 88 23 Regions Visited 2 Branch Regions . Pre-discovered Areas . | . . . Known Exits Taken . | . . . Unknown Exits Taken 2 | 1 1 . Scrap Searched . | . . . Spaces Dug . | . . . Terrain Destroyed 109 | . 109 . Melee . | . . . Projectile . | . . . AOE 109 | . 109 . Terrain Rammed . | . . . Walls Destroyed . | . . . Machines Disabled . | . . . Actions | -11 -10 -9 --------- Run | Yrd Mat Mat Total 1793 | 118 1054 621 Wait 119 | 6 56 57 Move 1461 | 87 902 472 Hop . | . . . Pick Up 48 | 11 24 13 Fast Attach . | . . . Attach 25 | 5 13 7 Detach 1 | . 1 . Swap 12 | . 8 4 Drop 28 | 2 16 10 Fire 97 | 7 34 56 Melee . | . . . Ram 2 | . . 2 Kick . | . . . Crush . | . . . Escape Stasis . | . . . Rewire . | . . . Trap . | . . . Miscellaneous . | . . . Route ------- -11/Scrapyard -10/Materials (discovered 5 exits: *Mat x3 / [*Min x2]) -9/Materials History --------- Turn | Location | Event 2 | -11/Scrapyard | Met Revision 17 78 | -11/Scrapyard | Discovered new exit (range 8) 129 | -11/Scrapyard | Entered Materials 187 | -10/Materials | Discovered new exit (range 9) 318 | -10/Materials | Build established: Mutant 532 | -10/Materials | Discovered new exit (range 6) 616 | -10/Materials | Discovered new exit (range 3) 796 | -10/Materials | Discovered new exit (range 15) 1064 | -10/Materials | Discovered new exit (range 7) 1139 | -10/Materials | Lost 4 parts (1p1n2w) 1413 | -10/Materials | Entered another Materials area 1413 | -9/Materials | Evolved 2 slots: Propulsion x1, Utility x1 1932 | -9/Materials | Lost 3 parts (2n1u) 2282 | -9/Materials | Core integrity fell below 50% 2328 | -9/Materials | Core integrity fell below 20% 2340 | -9/Materials | Destroyed by G-34 Mercenary with Small Laser Last Messages --------------- 02270_ Acquired Shotgun. 02270_ K-01 Serf cleans the Terminal. 02272_ R-06 Scavenger collects Shotgun. 02279_ K-01 Serf cleans the Terminal. 02285_ Critical hit (Burn: +37). 02286_ Sml. Laser destroyed. 02289_ Hover Unit destroyed. 02289_ G-34 Mercenary destroyed. 02290_ K-01 Serf collects debris. 02297_ Hcp. Matter Pod destroyed. 02299_ K-01 Serf collects debris. 02304_ R-06 Scavenger collects Aluminum Leg. 02307_ Lgt. Ion Engine destroyed. 02318_ G-47 Trooper destroyed. 02318_ K-01 Serf collects debris. 02323_ Shotgun destroyed. 02324_ K-01 Serf collects debris. 02328_ Terrain Scan Processor severed. 02331_ Acquired 28 matter. 02335_ Acquired 6 matter. Map ----- +----------------------------------------------------+ | ????????????????????????+ #?????# #???# ###### | | ????????????????????????# #######+##### | | ????????????????????????# # + | | ????????????????????????# # """ ### | | ????????????????????????# # [ R" #?########! | | ????????????????????????# # """ #????????## | | ????????????????????????# # #?????????# | | ????????????????????????# + #?????????# | | ????????????????????????# # #?????????# | | ????????????????????????# # #?????????# | | ???????????????????????## ###########?????????# | | ?????????????########### #??????????????????# | | ????????????? T" #??????????????????## | | ???????????? " #??????????????????? | | ???????????? #??????????????????? | | ????????????############ #??????????????????? | | ???????????????????????## ##??????????????????? | | ????????????????????????# #??????????????????? ? | | ????????????????????????# #????????????????????? | | ????????????????????????# #????????????????????? | | ??????????????########### k #????????????????????? | | ??????????????# #????????????????????? | | ??????????????# a #????????????????????? | | ??????????????+ """ [[[g #????????????????????? | | ??????????????# """ [k[l%#????????????????????? | | ???????????????? """ [[@ #????????????????????? | | ????????????? #????????????????????? | | ?????????? #????????????????????? | | ??????????? ####### #????????????????????? | | ??????????? ### #??????# #????????????????????? | | ???????????????#????????# #????????????????????? | | ????????????????????????# #????????????????????? | | ????????????????????????# #????????????????????? | | ????????????????????????# #????????????????????? | | ????????????????????????# #????????????????????? | | ????????????????????????# #????????????????????? | | ????????????????????????# #????????????????????? | | ????????????????????????# #????????????????????? | | ????????????????????????# #????????????????????? | | ????????????????????????# #????????????????????? | | ????????????????????????? ?????????????????????? | | ?????????????????????????????????????????????????? | | ?????????????????????????????????????????????????? | | ?????????????????????????????????????????????????? | | ?????????????????????????????????????????????????? | | ?????????????????????????????????????????????????? | | ?????????????????????????????????????????????????? | | ?????????????????????????????????????????????????? | | ?????????????????????????????????????????????????? | | ?????????????????????????????????????????????????? | +----------------------------------------------------+ Best States ------------- Heat Dissipation 38 Energy Generation 10 Energy Capacity 250 Matter Stores 373 Matter Capacity 600 Sight Range 16 Terrain Scan Density 85 Armor Coverage 300 Evasion (%) 55 Item Schematics ----------------- None Robot Schematics ------------------ None Fabricated ------------ Nothing Alien Tech Used ----------------- None Achievements -------------- Librarian Challenges ------------ None Game ------ Seed ScrapBombTerminator Manual? 0 Play Time 00:38:39 Cumulative 2.2 hours Start 2024.04.29 @ 09:27:05 End 2024.04.29 @ 10:03:29 Sessions 1 Manual Loads 0 Difficulty Rogue Special Mode None Game No. 3 Rogue 3 Adventurer 0 Explorer 0 Win Type - Total 0 Types 0/0/0/0/0/0/0/0/0 Lore% 1 Gallery% 4 Achievement% 6 Wizard Run 0 Options --------- Layout 2 ASCII 0 Keyboard 0 Movement Arrows Keybinds 0 Fullscreen 1 Font 24/Crisp Map View 50x44 Zoom Use 0% Tactical HUD 1 Map Filters NONE Filters NONE Steam 1 RUN: b8e5b003-59de-4f54-977c-458d64487113